[Event "Cabo Verde Open 2022"]
[Site "Mindelo-S. Vicente"]
[Date "2022.04.24"]
[Round "4.1"]
[White "Galego, Luis"]
[Black "Strikovic, Aleksa"]
[Result "1/2-1/2"]
[ECO "C92"]
[WhiteElo "2474"]
[BlackElo "2489"]
[Annotator "TA"]
[PlyCount "27"]
[EventDate "2022.04.22"]
[EventType "swiss"]
[SourceTitle "playchess.com"]
[Source "ChessBase"]
[SourceQuality "1"]
[TimeControl "40/5400+30:1800+30"]

{[%evp 26,27,23,0]} 1. e4 {[%emt 0:00:03]} e5 {[%emt 0:00:18]} 2. Nf3 {[%emt 0:00:05]} Nc6 {[%emt 0:00:07]} 3. Bb5 {[%emt 0:00:06][%cal Bf1b5,Bb5a4,Ba4b3][%mdl 32]} a6 {[%emt 0:00:09]} 4. Ba4 {[%emt 0:00:07]} Nf6 {[%emt 0:00:06]} 5. O-O {[%emt 0:00:13]} Be7 {[%emt 0:00:07]} 6. Re1 {[%emt 0:00:09]} b5 {[%emt 0:00:09]} 7. Bb3 {[%emt 0:00:07]} O-O {[%emt 0:00:08]} 8. c3 {[%emt 0:00:09]} d6 {[%emt 0:00:10]} 9. h3 {[%emt 0:00:08]} Re8 {[%emt 0:00:10]} 10. d4 {[%emt 0:00:25]} Bb7 {[%emt 0:00:18] [#]} 11. Ng5 $146 {[%emt 0:00:06]} ({Predecessor:} 11. Nbd2 Bf8 12. a4 exd4 13. cxd4 Na5 14. Bc2 b4 15. b3 g6 16. Bb2 d5 17. e5 Nh5 18. Nf1 Rc8 19. Ne3 c5 20. dxc5 Rxc5 {1-0 (65) Giri,A (2772)-Le,Q (2709) chess24.com INT 2022}) 11... Rf8 {[%emt 0:00:05]} 12. Nf3 {[%emt 0:00:04]} Re8 {[%emt 0:00:06]} 13. Ng5 {[%emt 0:00:06] Recently 13.Bc2 got a lot of attention.} Rf8 {[%emt 0:00:06]} 14. Nf3 {[%emt 0:00:04]} 1/2-1/2

[Event "Cabo Verde Open 2022"]
[Site "Mindelo-S. Vicente"]
[Date "2022.04.25"]
[Round "4.2"]
[White "Del Rio De Angelis, Salvador G."]
[Black "Fernandes, Antonio"]
[Result "1/2-1/2"]
[ECO "E60"]
[WhiteElo "2452"]
[BlackElo "2313"]
[Annotator "TA"]
[PlyCount "50"]
[EventDate "2022.04.22"]
[EventType "swiss"]
[SourceTitle "playchess.com"]
[Source "ChessBase"]
[SourceQuality "1"]
[TimeControl "40/5400+30:1800+30"]

{[%evp 9,50,1,8,-8,10,0,16,4,12,22,35,24,57,58,54,56,53,60,56,20,20,20,30,27,25,21,44,33,33,35,34,29,28,35,35,26,26,26,79,69,72,56,97]} 1. d4 {[%emt 0:00:05]} Nf6 {[%emt 0:06:16]} 2. c4 {[%emt 0:00:15]} g6 {[%emt 0:05:57]} 3. d5 {[%emt 0:00:19]} Bg7 {[%emt 0:07:23]} 4. Nc3 {[%emt 0:00:16]} d6 {[%emt 0:01:03]} 5. Nf3 {[%emt 0:01:26]} O-O {[%emt 0:01:27]} 6. g3 {[%emt 0:00:16] E60: King's Indian: Unusual lines and Fianchetto Variation without Nc3.} Na6 {[%emt 0:09:05]} 7. Bg2 {[%emt 0:04:32]} Nc5 {[%emt 0:04:11]} 8. Nd4 {[%emt 0:02:23] The position is equal.} a5 {[%emt 0:05:28]} (8... e6 {keeps more tension.} 9. b4 Ng4 10. O-O exd5 11. cxd5 Nd7) 9. O-O {[%emt 0:03:26]} e5 {[%emt 0:02:47]} 10. dxe6 {[%emt 0:00:37] [#]} Bxe6 $146 {[%emt 0:16:41]} ({Predecessor:} 10... fxe6 11. Bg5 c6 12. Nb3 Nxb3 13. axb3 d5 14. e4 h6 15. Bxf6 Qxf6 16. exd5 exd5 17. cxd5 cxd5 18. Nxd5 {1-0 (52) Arkell,K (2506)-Mordue,A (2298) Paington 2008}) 11. Nxe6 {[%emt 0:02:24]} fxe6 {[%emt 0:00:08]} 12. Be3 {[%emt 0:05:25]} Rb8 {[%emt 0:17:14]} 13. Bxc5 {[%emt 0:11:56]} (13. Qc2 {looks sharper.} Qe7 14. Rad1 Ng4 15. Bxc5 dxc5 16. h3) 13... dxc5 {[%emt 0:00:01]} 14. Qxd8 {[%emt 0:00:16]} Rfxd8 {[%emt 0:00:06]} 15. Rad1 {[%emt 0:00:06]} Nd7 {[%emt 0:09:40]} 16. Ne4 {[%emt 0:02:35]} b6 {[%emt 0:05:56]} (16... Bxb2 $2 17. Rd2 $18) 17. b3 {[%emt 0:26:55]} Nf8 {[%emt 0:00:13]} 18. e3 {[%emt 0:00:08]} Kf7 {[%emt 0:00:52]} 19. f4 {[%emt 0:00:54]} Ke7 {[%emt 0:00:30]} 20. Kf2 {[%emt 0:02:41]} Rxd1 {[%emt 0:03:13]} 21. Rxd1 {[%emt 0:00:09]} a4 {[%emt 0:00:26]} 22. Nd2 {[%emt 0:34:26]} axb3 23. axb3 b5 {[%emt 0:03:23]} (23... Bc3 $11) 24. cxb5 $16 {[%emt 0:01:00]} Rxb5 {[%emt 0:00:30]} 25. Bc6 Rb8 {[%emt 0:00:30] Weighted Error Value: White=0.06 (flawless) /Black=0.10 (very precise)} 1/2-1/2

[Event "Cabo Verde Open 2022"]
[Site "Mindelo-S. Vicente"]
[Date "2022.04.24"]
[Round "4.3"]
[White "Ortega Amarelle, Mariano"]
[Black "Caxita, Esperanca"]
[Result "1-0"]
[ECO "D45"]
[WhiteElo "2476"]
[BlackElo "1910"]
[Annotator "TA"]
[PlyCount "53"]
[EventDate "2022.04.22"]
[EventType "swiss"]
[SourceTitle "playchess.com"]
[Source "ChessBase"]
[SourceQuality "1"]
[TimeControl "40/5400+30:1800+30"]

{[%evp 12,53,31,16,13,5,61,80,77,81,110,113,118,110,175,127,134,120,151,160,163,152,233,229,429,412,560,566,525,570,554,538,689,701,864,756,1144,1108,1955,1155,1190,1187,1153,1125]} 1. d4 {[%emt 0:02:33]} d5 {[%emt 0:00:24]} 2. c4 {[%emt 0:00:08]} c6 {[%emt 0:00:13]} 3. Nc3 {[%emt 0:00:17]} Nf6 {[%emt 0:00:44]} 4. Nf3 {[%emt 0:00:10]} e6 {[%emt 0:01:05]} 5. e3 {[%emt 0:04:23]} Bd6 {[%emt 0:01:24]} 6. Bd3 {[%emt 0:02:05]} dxc4 {[%emt 0:02:42]} 7. Bxc4 {[%emt 0:00:10]} b5 {[%emt 0:00:20] D45: Semi-Slav: 5 e3.} 8. Bd3 {[%emt 0:01:39]} Bb7 {[%emt 0:00:24]} (8... Nbd7 $11) 9. e4 $1 $14 {[%emt 0:03:28][%cal Be3e4,Be4e5][%mdl 32] e5 is the strong threat.} Be7 {[%emt 0:05:59] White is better.} 10. O-O {[%emt 0:04:14]} Nbd7 {[%emt 0:00:36][%cal Bb8d7,Bd7f8,Bf8e6][%mdl 32]} 11. e5 {[%emt 0:00:34]} Nd5 {[%emt 0:03:17]} 12. Nxd5 {[%emt 0:00:09]} exd5 {[%emt 0:00:31]} (12... cxd5 $16 13. Bxb5 O-O) 13. Qc2 {[%emt 0:03:32]} ({White should try} 13. e6 $18 fxe6 14. Qe2) 13... Nf8 $16 {[%emt 0:04:06] [#]} 14. a4 $146 {[%emt 0:06:27]} ({Predecessor:} 14. Re1 Qb6 15. a4 Bb4 16. Re2 bxa4 17. Qxa4 Bc8 18. Bd2 Bxd2 19. Nxd2 Ne6 20. Nb3 {1-0 (49) Riccardi,M (1872)-Fassio,F (1623) Torino 2012}) 14... a6 {[%emt 0:01:42]} 15. Nd2 {[%emt 0:09:38] &Bianco is more active.} Ne6 {[%emt 0:04:36] [#]} 16. Nb3 {[%emt 0:00:14]} Rc8 {[%emt 0:04:05]} (16... bxa4 $16 {was called for.} 17. Rxa4 Qb6) 17. f4 $18 {[%emt 0:03:19][%cal Bf2f4,Bf4f5][%mdl 32] Hoping for f5.} ({Less strong is} 17. Bxh7 bxa4 18. Rxa4 c5 $14) 17... c5 $2 {[%emt 0:04:03]} (17... bxa4 18. Rxa4 c5) 18. f5 {[%emt 0:00:36]} cxd4 {[%emt 0:06:18]} 19. Qe2 {[%emt 0:05:38] White is clearly winning.} Nc5 {[%emt 0:03:29]} 20. Nxc5 {[%emt 0:00:07]} Bxc5 {[%emt 0:00:49]} 21. axb5 {[%emt 0:00:12]} axb5 {[%emt 0:00:50]} 22. Qg4 {[%emt 0:00:21]} Qe7 {[%emt 0:10:28]} 23. Qxg7 {[%emt 0:02:26]} Qf8 {[%emt 0:02:27]} 24. Qf6 {[%emt 0:04:49]} Bc6 {[%emt 0:05:08]} 25. Bh6 {[%emt 0:03:17]} Be7 {[%emt 0:02:59] [#]} 26. Qxc6+ $1 {[%emt 0:01:02][%mdl 512]} Rxc6 {[%emt 0:00:39]} 27. Bxf8 {[%emt 0:00:10] Weighted Error Value: White=0.06 (flawless) /Black=0.59} 1-0

[Event "Cabo Verde Open 2022"]
[Site "Mindelo-S. Vicente"]
[Date "2022.04.25"]
[Round "4.4"]
[White "L`Ami, Alina"]
[Black "Babo, Miguel"]
[Result "1-0"]
[ECO "E30"]
[WhiteElo "2287"]
[BlackElo "1789"]
[Annotator "TA"]
[PlyCount "87"]
[EventDate "2022.04.22"]
[EventType "swiss"]
[SourceTitle "playchess.com"]
[Source "ChessBase"]
[SourceQuality "1"]
[TimeControl "40/5400+30:1800+30"]

{[%evp 9,87,18,20,22,52,27,59,61,62,62,53,43,54,45,56,50,67,68,79,70,74,70,83,54,53,0,66,66,88,57,121,116,187,87,87,89,140,102,151,149,148,144,149,146,153,131,177,155,191,133,161,138,156,122,222,223,238,244,322,326,348,353,361,364,473,459,461,451,640,560,543,541,541,548,520,518,618,608,576,553]} 1. d4 {[%emt 0:00:03]} Nc6 {[%emt 0:06:17]} 2. Nf3 {[%emt 0:00:52]} e6 {[%emt 0:01:05]} 3. Bg5 {[%emt 0:04:26]} Nf6 {[%emt 0:03:09]} 4. c4 {[%emt 0:01:47]} Bb4+ {[%emt 0:01:34]} 5. Nc3 {[%emt 0:00:50]} Bxc3+ {[%emt 0:00:42]} 6. bxc3 {[%emt 0:00:01] E30: Nimzo-Indian: Leningrad Variation.} O-O {[%emt 0:02:00]} 7. Qc2 {[%emt 0:05:21]} d5 {[%emt 0:02:24]} 8. e3 {[%emt 0:00:22] White is slightly better.} h6 {[%emt 0:09:54]} 9. Bh4 {[%emt 0:01:23]} b6 {[%emt 0:04:38]} 10. cxd5 {[%emt 0:06:06]} exd5 {[%emt 0:00:31]} 11. Bd3 {[%emt 0:00:35] [#]} Re8 $146 {[%emt 0:01:36]} ({Predecessor:} 11... Bb7 12. Ne5 Qd6 13. Bg3 Qe6 14. Bf5 Qe8 15. O-O Nxe5 16. Bxe5 Qd8 17. Bd3 Ne4 {1-0 (49) Kapp,F (1748)-Liem Thanh,G (1250) Berlin 2008}) 12. Nd2 {[%emt 0:09:18]} Qd6 {[%emt 0:09:19]} 13. O-O {[%emt 0:01:38]} Bb7 {[%emt 0:08:12]} 14. Rfe1 {[%emt 0:05:38]} Na5 {[%emt 0:02:16]} 15. f3 {[%emt 0:04:49]} c5 {[%emt 0:04:12]} 16. Bg3 {[%emt 0:04:28]} Qf8 {[%emt 0:02:05]} 17. e4 {[%emt 0:05:50]} (17. Rad1 $14) 17... c4 {[%emt 0:08:06]} (17... cxd4 $11 18. cxd4 Qb4) 18. Bf1 $14 {[%emt 0:00:18]} Rac8 {[%emt 0:04:14]} 19. Bh4 {[%emt 0:05:35] aiming for Bxf6.} Nd7 {[%emt 0:02:02] [#]} (19... Nh5 $14) 20. e5 $1 $16 {[%emt 0:02:04]} g5 {[%emt 0:02:53] [#]} (20... Nc6 $16) 21. Bf2 {[%emt 0:03:45]} (21. Bg3 $1 $18 {has better winning chances.}) 21... Qg7 {[%emt 0:00:56]} 22. g3 {[%emt 0:02:09]} Nf8 {[%emt 0:00:45]} ({Better is} 22... f6) 23. Bh3 {[%emt 0:00:17]} Ne6 {[%emt 0:00:26]} (23... Rcd8 $142) 24. Nf1 {[%emt 0:00:49]} Nc6 {[%emt 0:00:29]} 25. Ne3 {[%emt 0:00:44]} Ne7 {[%emt 0:00:11]} 26. Ng4 {[%emt 0:01:07]} Kh8 {[%emt 0:01:02]} 27. a4 {[%emt 0:02:48]} Rc7 {[%emt 0:00:38]} (27... Qh7 $2 28. Qxh7+ Kxh7 29. Nf6+ Kg6 30. Nxe8 Rxe8 31. Be3) (27... Ng8 $16 28. Ne3 Ne7) 28. Be3 {[%emt 0:01:25][%cal Bf2e3,Be3c1,Bc1a3][%mdl 32]} Rd8 {[%emt 0:01:02]} 29. Kh1 {[%emt 0:01:53]} (29. Bc1 $18) 29... Ng8 {[%emt 0:06:13]} 30. Bc1 {[%emt 0:01:30]} Bc8 {[%emt 0:01:30]} 31. Bg2 {[%emt 0:06:08] &Bianco is more active.} Re7 {[%emt 0:03:05]} (31... f5 $16) 32. Ba3 $18 {[%emt 0:01:10]} Ree8 {[%emt 0:00:14]} 33. Ne3 {[%emt 0:00:58]} Nf8 {[%emt 0:01:17]} 34. f4 {[%emt 0:01:29]} gxf4 {[%emt 0:05:20]} 35. gxf4 {[%emt 0:00:19]} (35. Nxd5 fxg3 36. Nc7 Re7 $18) 35... f6 {[%emt 0:00:52]} 36. Rg1 {[%emt 0:03:05]} ({Stronger than} 36. Bxd5 Rxd5 37. Nxd5 Bb7 $15) ({Don't take} 36. Nxd5 Ng6 37. Nc7 Nxf4 $18) 36... Qh7 {[%emt 0:00:47]} 37. Qxh7+ {[%emt 0:02:49] White is clearly winning.} Nxh7 {[%emt 0:00:55]} 38. Nxd5 {[%emt 0:00:18]} Bb7 {[%emt 0:01:30]} (38... Rd7 $142 39. Ne3 fxe5 40. fxe5 Rc7) 39. Ne3 {[%emt 0:01:12]} Bxg2+ {[%emt 0:00:32]} 40. Rxg2 {[%emt 0:00:00]} fxe5 {[%emt 0:00:00]} 41. fxe5 {[%emt 0:00:36]} Ng5 {[%emt 0:01:53]} 42. Nxc4 {[%emt 0:01:42]} Ne4 {[%emt 0:01:12]} 43. Nd6 {[%emt 0:01:28]} Nxd6 {[%emt 0:00:54]} 44. Bxd6 {[%emt 0:00:14] Weighted Error Value: White=0.14 (very precise) /Black=0.30} 1-0

[Event "Cabo Verde Open 2022"]
[Site "Mindelo-S. Vicente"]
[Date "2022.04.24"]
[Round "4.5"]
[White "Maisuradze, Nino"]
[Black "Fernandes, Luis De Pina"]
[Result "1-0"]
[ECO "E67"]
[WhiteElo "2202"]
[BlackElo "1639"]
[Annotator "TA"]
[PlyCount "71"]
[EventDate "2022.04.22"]
[EventType "swiss"]
[SourceTitle "playchess.com"]
[Source "ChessBase"]
[SourceQuality "1"]
[TimeControl "40/5400+30:1800+30"]

{[%evp 13,71,22,62,47,49,40,61,52,57,39,135,139,139,137,131,124,131,86,85,86,87,69,84,88,112,95,147,106,174,145,164,141,146,131,218,206,235,237,432,423,573,562,650,652,697,554,1654,1396,2212,1979,1106,910,1141,1131,862,1298,1319,1321,849,484]} 1. d4 {[%emt 0:06:35]} Nf6 {[%emt 0:01:34]} 2. Nf3 {[%emt 0:00:25]} g6 {[%emt 0:00:12]} 3. c4 {[%emt 0:00:53]} Bg7 {[%emt 0:00:10]} 4. g3 {[%emt 0:03:48]} d6 {[%emt 0:03:27]} 5. Bg2 {[%emt 0:00:17]} Nbd7 {[%emt 0:00:35]} 6. Nc3 {[%emt 0:01:02]} O-O {[%emt 0:00:18]} 7. O-O {[%emt 0:00:06]} Rb8 {[%emt 0:00:33]} 8. Qc2 {[%emt 0:01:49] E67: King's Indian: Fianchetto: 6...Nbd7.} e5 {[%emt 0:02:30]} 9. Rd1 {[%emt 0:00:33]} exd4 {[%emt 0:02:42]} 10. Nxd4 {[%emt 0:00:04] [#] White is slightly better.} Qe7 $146 {[%emt 0:09:18]} ({Predecessor:} 10... a6 11. e4 Re8 12. h3 Ne5 13. b3 Nc6 14. Nxc6 bxc6 15. Bf4 Qe7 16. Rac1 Nh5 17. Be3 f5 18. exf5 Bxf5 19. Qd2 Nxg3 20. Bg5 Qe5 21. fxg3 Qxg3 22. Qf4 Qxf4 23. Bxf4 {1-0 (23) Gorozhanin,M (2125)-Teterikov,A (2077) Kstovo 2010}) 11. Bg5 {[%emt 0:02:36]} Nc5 {[%emt 0:01:55] [#]} (11... h6 $14 12. Be3 (12. Nd5 Qd8 $14) 12... Ng4) 12. Nd5 $1 $16 {[%emt 0:00:47]} ({But not} 12. b4 $6 Ne6 13. Nxe6 (13. Nd5 Qd8 $14) 13... Bxe6 $14) 12... Qd8 {[%emt 0:03:17]} 13. Nb5 $36 {[%emt 0:02:18][%mdl 2048] White is on the roll.} ({Resist} 13. b4 $6 Ne6 14. Bxf6 Bxf6 15. Nxf6+ Qxf6 $14) 13... Ne6 {[%emt 0:02:15]} 14. Bxf6 {[%emt 0:00:36] 0x0.00299f40aea5dp-1022s more active pieces. The black rooks are badly placed.} Bxf6 {[%emt 0:00:33]} 15. Nxa7 {[%emt 0:03:22]} Bg7 {[%emt 0:02:20]} 16. Nxc8 {[%emt 0:00:25]} Rxc8 {[%emt 0:00:30]} 17. Rab1 {[%emt 0:02:34]} c6 {[%emt 0:00:31]} 18. Nc3 {[%emt 0:00:21]} Qe7 {[%emt 0:00:12]} 19. b4 {[%emt 0:01:47]} Rfe8 {[%emt 0:00:48]} ({Better is} 19... Ra8) 20. Qd3 {[%emt 0:00:48]} Rcd8 {[%emt 0:00:36]} (20... Ra8 $16) 21. e3 {[%emt 0:00:40]} h5 {[%emt 0:03:12]} 22. h4 {[%emt 0:05:09]} g5 {[%emt 0:03:15]} 23. hxg5 {[%emt 0:00:05]} Qxg5 {[%emt 0:00:17]} (23... Nxg5 $16 {keeps fighting.} 24. Rbc1 Bxc3 25. Rxc3 (25. Qxc3 f5 $16) 25... Qf6) 24. Ne4 $18 {[%emt 0:00:22][%csl LRd6,LRg5]} Qh6 {[%emt 0:02:02]} 25. Nxd6 {[%emt 0:01:16]} Rxd6 $2 {[%emt 0:02:37]} (25... Bf8) 26. Qxd6 {[%emt 0:00:13] White is clearly winning.} Rd8 {[%emt 0:00:29]} 27. Qe7 {[%emt 0:00:57][%csl LRb7,LRd8]} Rxd1+ {[%emt 0:02:04]} 28. Rxd1 {[%emt 0:00:02][%cal Bb1d1,Bd1d7,Bd7b7][%mdl 32]} Bf6 {[%emt 0:01:40]} 29. Qe8+ {[%emt 0:01:07]} Nf8 {[%emt 0:01:03]} 30. Rd7 {[%emt 0:03:09]} Qh7 {[%emt 0:00:58]} 31. Rxb7 {[%emt 0:00:54]} h4 {[%emt 0:00:05]} 32. gxh4 {[%emt 0:03:10]} Bxh4 {[%emt 0:00:23]} 33. Rb8 {[%emt 0:12:32][%csl Gb8][%cal Re8f8] [#]} Qg7 {[%emt 0:00:38]} 34. Qxf8+ {[%emt 0:00:49]} Qxf8 {[%emt 0:00:10]} 35. Rxf8+ {[%emt 0:00:02]} Kxf8 {[%emt 0:00:01]} 36. Bxc6 {[%emt 0:00:07] Weighted Error Value: White=0.19 (very precise) /Black=0.43} 1-0

[Event "Cabo Verde Open 2022"]
[Site "Mindelo-S. Vicente"]
[Date "2022.04.25"]
[Round "4.6"]
[White "Varela La Madrid, Tilsia Carolina"]
[Black "Fortes, Aires"]
[Result "1-0"]
[ECO "C49"]
[WhiteElo "2097"]
[BlackElo "1540"]
[Annotator "TA"]
[PlyCount "67"]
[EventDate "2022.04.22"]
[EventType "swiss"]
[SourceTitle "playchess.com"]
[Source "ChessBase"]
[SourceQuality "1"]
[TimeControl "40/5400+30:1800+30"]

{[%evp 17,67,0,4,-7,12,-10,27,-10,100,37,33,41,45,31,43,32,214,229,214,120,128,125,225,162,160,179,177,173,182,135,947,931,1035,502,423,179,179,163,257,239,249,235,295,295,425,435,631,579,1086,1068,1515,1015]} 1. e4 {[%emt 0:00:05]} e5 {[%emt 0:00:15]} 2. Nf3 {[%emt 0:00:09]} Nc6 {[%emt 0:00:12]} 3. Nc3 {[%emt 0:00:07]} Nf6 {[%emt 0:00:43]} 4. Bb5 {[%emt 0:00:09]} Bb4 {[%emt 0:02:03]} 5. O-O {[%emt 0:09:52]} O-O {[%emt 0:00:34]} 6. Nd5 {[%emt 0:01:45]} Nxd5 {[%emt 0:11:02]} 7. exd5 {[%emt 0:00:17][%cal Be4d5,Bd5d6][%mdl 32]} Nd4 {[%emt 0:00:55]} 8. Nxd4 {[%emt 0:01:07]} exd4 {[%emt 0:00:23]} 9. c3 {[%emt 0:00:05]} Bc5 {[%emt 0:03:01]} 10. b4 {[%emt 0:00:12] C49: Four Knights: 4 Bb5 Bb4.} Bb6 {[%emt 0:00:11] [#]} (10... Bd6 {is more complex.} 11. Bd3 Qg5 12. Qc2 f5) 11. d6 $146 {[%emt 0:00:29]} ({Predecessor:} 11. Bd3 d6 12. Bb2 Qg5 13. c4 Bh3 14. Be4 Rae8 15. f4 Qh4 16. Bd3 Bg4 17. Qc2 Be2 {0-1 (51) Rupel,D (2134)-Bartron,P (2110) Redmond 2012}) 11... a5 {[%emt 0:01:39]} (11... Qf6 {seems wilder.} 12. dxc7 Bxc7 13. Re1 d5) 12. Bb2 {[%emt 0:00:42] White has an edge.} c5 {[%emt 0:07:29]} (12... axb4 $11 13. cxb4 (13. dxc7 Qg5 $11) 13... c6) 13. bxc5 {[%emt 0:05:02]} ({Better is} 13. bxa5 $16 Rxa5 14. a4) 13... Bxc5 $14 {[%emt 0:00:37]} 14. Qg4 {[%emt 0:00:29] Inhibits Qg5.} Qb6 {[%emt 0:02:44]} 15. a4 {[%emt 0:02:00][%cal Rc3d4]} Bxd6 {[%emt 0:05:03]} 16. cxd4 {[%emt 0:00:25][%cal Bc3d4,Bd4d5][%mdl 32]} Rd8 $2 {[%emt 0:00:35] [#]} (16... Bb4 $14) 17. d5 $1 $18 {[%emt 0:05:53][%csl Gb2][%cal Rg4g7]} Bf8 {[%emt 0:00:23] [#]} 18. Bd4 {[%emt 0:03:54]} ({White should try} 18. Qh4 $1 $18 Re8 19. Rfe1) 18... Qd6 {[%emt 0:09:38]} 19. Qg5 $36 {[%emt 0:03:02][%mdl 2048] Black is under strong pressure. 0x0.001a398f4a34dp-1022s more active pieces. The black rooks are badly placed.} f6 {[%emt 0:01:16]} (19... Qe7 $16 {is a better defense.} 20. Qe3 b6 21. Bxb6 Re8) 20. Qe3 {[%emt 0:03:07] Bb6 is the strong threat.} Qe7 {[%emt 0:04:27]} 21. Qc3 {[%emt 0:04:55]} Qb4 {[%emt 0:02:18]} 22. Bb6 {[%emt 0:05:46]} Re8 {[%emt 0:03:22]} 23. Rfe1 {[%emt 0:00:45]} ({White should play} 23. Qc2 $18) 23... Kf7 $2 {[%emt 0:08:44][%mdl 8192]} (23... Qxc3 $16 24. dxc3 Re7) 24. Rxe8 {[%emt 0:01:26]} Kxe8 {[%emt 0:00:13]} 25. Re1+ {[%emt 0:00:50]} (25. Qd3 $142) 25... Kf7 {[%emt 0:00:12]} 26. Qe3 {[%emt 0:01:13]} (26. Qd3 $142 {[%cal Od5d6] Hoping for d6!} g6 27. h3) 26... Qe7 {[%emt 0:01:11]} 27. Bc7 {[%emt 0:02:49]} Qxe3 {[%emt 0:05:40]} (27... d6 $142) 28. Rxe3 {[%emt 0:01:00] Threatens to win with d6.} (28. fxe3 Bb4 $14) 28... Bc5 {[%emt 0:01:35]} 29. Re2 {[%emt 0:00:45][%cal Be3e2,Be2e8,Be8d8][%mdl 32]} d6 {[%emt 0:05:28]} 30. Re8 {[%emt 0:00:18]} b6 {[%emt 0:11:37]} (30... Bb4 {was called for.} 31. Rd8 h6) 31. Bc6 {[%emt 0:00:25] White is clearly winning.} g6 {[%emt 0:02:46]} (31... b5 $142 32. Rd8 (32. Bxa8 Kxe8 33. Bc6+ Bd7 $15) (32. Bxb5 Bb7 $16) 32... Bb7) 32. Rd8 {[%emt 0:01:27]} Ke7 {[%emt 0:00:39]} 33. Bxa8 {[%emt 0:00:09]} Kf7 {[%emt 0:03:32]} 34. Bc6 {Weighted Error Value: White=0.43/Black=0.56} 1-0